bitfinex-derivatives/quotes_ETHF0:USTF0_20250224
["timestamp","ask_amount","ask_price","bid_price","bid_amount"]
[1740356822458,2.522,2833.3,2833.2,0.7059]
[1740356824250,2.99228961,2833.7,2833.1,0.5604]
[1740356824251,2.52728961,2833.7,2833.1,0.5604]
[1740356824456,2.52728961,2833.7,2833.6,0.7058]
[1740356824648,0.00528961,2833.7,2833.6,0.7058]
[1740356825656,0.00528961,2833.7,2833.6,3.9136]
[1740356825857,2.522,2834.3,2834.2,0.70565]
[1740356826057,2.522,2834.3,2833.7,3.7271]
[1740356826258,2.522,2834.3,2834.2,0.70565]
[1740356828060,2.522,2834.3,2834.1,0.70566]
[1740356828361,2.522,2834.3,2834.0,0.00528961]
[1740356828562,2.522,2834.3,2834.2,0.70565]
[1740356829956,0.00528961,2834.5,2834.4,0.7056]
[1740356832570,0.00528961,2834.5,2834.0,3.21308961]
[1740356832868,0.70561,2834.4,2834.0,0.00528961]
[1740356833169,6.44067961,2834.5,2834.2,0.70564]
[1740356833669,5.73508961,2834.5,2834.0,0.00528961]
[1740356833865,2.52728961,2834.5,2834.4,0.7056]
[1740356835378,0.00528961,2834.5,2834.4,0.7056]
[1740356835668,0.00528961,2834.5,2834.4,1.2403]
[1740356836067,0.5237,2835.1,2835.0,0.70545]
[1740356836761,0.5237,2835.1,2834.6,0.513]
[1740356836969,0.5237,2835.1,2835.0,0.70545]
[1740356837170,0.00528961,2835.1,2835.0,0.70545]
[1740356839373,0.00528961,2835.1,2835.0,3.91325]
[1740356839964,20.0891,2836.3,2835.1,1.76355]
[1740356839965,2.521,2835.9,2835.1,1.76355]
[1740356840267,3.22625,2835.9,2835.6,0.70529]
[1740356840473,2.521,2835.9,2835.6,0.70529]
[1740356840667,3.22623,2835.9,2835.6,0.70529]
[1740356841067,0.70525,2835.8,2835.5,0.71059961]
[1740356841266,2.521,2835.9,2835.5,0.00528961]
[1740356841468,0.7053,2835.6,2835.5,0.00528961]
[1740356841663,3.2078,2835.6,2834.7,3.91331]
[1740356841970,3.2078,2835.3,2834.8,0.547]
[1740356842162,0.70547,2834.9,2834.8,0.547]
[1740356842565,5.7288,2835.3,2834.8,0.547]
[1740356843275,0.70546,2835.0,2834.8,0.547]
[1740356843474,5.7288,2835.3,2834.8,0.547]
[1740356843672,0.7054,2835.2,2834.8,0.547]
[1740356844674,6.43418,2835.3,2834.9,0.70546]
[1740356844871,6.43418,2835.3,2834.8,0.547]
[1740356845070,0.70541,2835.2,2834.8,1.25248]
[1740356845270,6.43418,2835.3,2834.9,0.70546]
[1740356845473,5.7288,2835.3,2834.8,0.547]
[1740356845777,6.43419,2835.3,2834.9,0.70545]
[1740356846178,0.7054,2835.2,2834.8,1.25249]
[1740356846477,5.7288,2835.3,2834.8,0.547]
[1740356846780,0.70552,2834.8,2834.6,0.00528961]
[1740356847273,4.47852,2834.7,2834.6,0.00528961]
[1740356848478,3.773,2834.7,2834.6,0.00528961]
[1740356848778,4.47852,2834.7,2834.6,0.00528961]
[1740356849281,0.70562,2834.3,2833.9,0.70571]
[1740356849481,0.70561,2834.4,2834.0,0.70568]
[1740356849678,3.773,2834.7,2833.8,3.2078]
[1740356849873,3.773,2834.7,2834.0,0.7057]
[1740356850074,3.773,2834.7,2833.9,0.70571]
[1740356850381,0.70562,2834.4,2834.0,0.00528961]
[1740356850679,0.00528961,2834.6,2834.0,0.00528961]
[1740356850879,0.70562,2834.4,2834.0,0.00528961]
[1740356851177,0.71084961,2834.6,2834.2,0.70564]
[1740356851377,0.70558,2834.5,2834.1,0.70566]
[1740356851772,2.52,2834.4,2834.0,0.00528961]
[1740356851972,2.52,2834.4,2834.2,0.70565]
[1740356852171,2.52,2834.4,2834.1,0.70565]
[1740356852774,5.7278,2834.4,2834.0,0.00528961]
[1740356853178,0.70563,2834.3,2834.0,0.00528961]
[1740356853486,5.7278,2834.4,2834.1,0.70566]
[1740356854381,5.7278,2834.4,2834.0,0.00528961]
[1740356854586,5.7278,2834.4,2834.2,0.70563]
[1740356854883,5.7278,2834.4,2834.0,0.00528961]
[1740356855085,5.7278,2834.4,2834.2,0.70563]
[1740356855480,3.2078,2834.4,2834.3,0.70562]
[1740356855784,3.2078,2834.4,2834.0,0.00528961]
[1740356855985,3.2078,2834.4,2834.3,0.70562]
[1740356856185,3.2078,2834.4,2834.2,0.70564]
[1740356856385,3.2078,2834.4,2834.3,0.70562]
[1740356856587,3.2078,2834.4,2834.2,0.70563]
[1740356856886,3.91341,2834.4,2834.2,0.70563]
[1740356857083,3.2078,2834.4,2834.3,0.70562]
[1740356858274,3.2078,2834.4,2834.0,0.00528961]
[1740356858477,3.2078,2834.4,2834.3,0.70562]
[1740356860488,3.2078,2834.4,2834.0,0.52228961]
[1740356860691,3.2078,2834.4,2834.0,0.71096961]
[1740356860986,0.70564,2834.3,2834.1,0.70567]
[1740356861179,0.70563,2834.3,2834.0,0.00528961]
[1740356861384,0.70563,2834.3,2834.0,0.71096961]
[1740356861581,0.70563,2834.3,2834.1,0.70567]
[1740356861785,3.91341,2834.4,2834.1,0.70567]
[1740356862286,3.2078,2834.4,2834.0,0.00528961]
[1740356862689,3.91341,2834.4,2834.0,0.00528961]
[1740356862888,3.91341,2834.4,2834.1,0.70567]
[1740356863193,3.2078,2834.4,2834.0,0.00528961]
[1740356863389,3.91347,2834.1,2834.0,0.00528961]
[1740356863788,3.2078,2834.1,2834.0,0.00528961]
[1740356863982,0.5278,2834.2,2834.0,0.00528961]
[1740356864494,0.5278,2834.2,2834.0,0.71096961]
[1740356864696,0.5278,2834.2,2834.0,0.00528961]
[1740356865094,0.70567,2834.1,2834.0,0.00528961]
[1740356865298,1.23477,2834.1,2834.0,0.00528961]
[1740356866394,4.44257,2834.1,2834.0,0.00528961]
[1740356868995,3.7369,2834.1,2833.2,0.539]
[1740356869198,0.70579,2833.7,2833.3,0.70586]
[1740356869393,3.2078,2833.5,2833.1,0.5607]
[1740356869593,3.2078,2833.5,2833.0,3.7736]
[1740356869594,0.70585,2833.4,2833.0,3.7736]
[1740356869790,1.26925,2833.4,2833.0,4.47954]
[1740356870399,1.26927,2833.4,2833.0,4.47954]
[1740356870697,0.70591,2833.2,2832.8,1.26669]
[1740356871404,0.70592,2833.2,2832.8,1.26668]
[1740356871697,2.519,2833.3,2832.8,0.5607]
[1740356871901,2.519,2833.3,2833.1,0.70591]
[1740356872292,2.519,2833.3,2832.8,0.5607]
[1740356872496,2.519,2833.3,2833.2,0.7059]
[1740356873901,2.519,2833.3,2833.2,41.5059]
[1740356875104,2.519,2833.3,2833.2,0.7059]
[1740356875307,3.2078,2833.5,2833.3,0.70585]
[1740356875508,3.2078,2833.5,2833.4,0.70585]
[1740356876307,3.2078,2833.5,2832.8,2.15022745]
[1740356876709,0.70589,2833.3,2833.0,0.70593]
[1740356876905,0.70591,2833.2,2833.0,0.70593]
[1740356877101,3.2078,2833.5,2832.8,2.15022745]
[1740356877309,0.70588,2833.3,2833.1,0.70592]
[1740356878210,3.2078,2833.5,2833.0,0.70594]
[1740356878409,3.2078,2833.5,2832.8,2.15022745]
[1740356878709,0.70587,2833.3,2833.1,0.70591]
[1740356878905,3.2078,2833.5,2833.1,0.70591]
[1740356879111,0.70587,2833.3,2833.1,0.70591]
[1740356879511,3.2078,2833.5,2833.1,0.70591]
[1740356879911,0.70587,2833.3,2833.0,0.70593]
[1740356880114,0.70586,2833.4,2833.1,0.7059]
[1740356880811,0.70587,2833.4,2832.8,0.5607]
[1740356881317,3.2078,2833.5,2833.1,0.70591]
[1740356881522,0.70587,2833.4,2833.1,0.70591]
[1740356882115,0.70587,2833.4,2833.1,0.7059]
[1740356882715,0.70587,2833.4,2832.8,0.5607]
[1740356882914,0.70587,2833.4,2833.2,0.7059]
[1740356883214,0.70586,2833.4,2833.1,0.70591]
[1740356883421,0.70586,2833.4,2832.8,0.5607]
[1740356883610,0.70586,2833.4,2833.1,0.7059]
[1740356883813,0.70586,2833.4,2832.8,0.5607]
[1740356884011,3.91364,2833.5,2833.2,0.70589]
[1740356884308,3.2078,2833.5,2832.8,0.5607]
[1740356884513,3.2078,2833.5,2833.2,0.70589]
[1740356884717,3.91364,2833.5,2833.2,0.70589]
[1740356885013,3.2078,2833.5,2832.8,0.5607]
[1740356885220,2.519,2833.6,2833.1,1.76481]
[1740356885520,22.096,2833.9,2833.8,0.70575]
[1740356886112,19.577,2833.9,2833.8,0.70575]
[1740356886919,19.577,2833.9,2833.6,3.91358]
[1740356887119,19.577,2833.9,2833.6,3.2078]
[1740356887315,4.2789,2833.8,2833.3,0.70586]
[1740356887515,2.519,2833.7,2833.2,0.5121]
[1740356887713,1.0711,2833.8,2833.2,0.5121]
[1740356888018,19.577,2833.9,2833.8,0.70575]
[1740356888513,0.5128,2834.4,2833.8,3.2078]
[1740356888720,2.519,2834.3,2834.2,0.70565]
[1740356888910,2.519,2834.3,2833.9,0.5377]
[1740356888911,0.70568,2834.1,2833.9,0.5377]
[1740356889111,2.519,2834.3,2833.9,0.5377]
[1740356889506,2.519,2834.3,2834.2,0.70565]
[1740356889713,3.22464,2834.3,2833.9,0.5377]
[1740356889917,0.70565,2834.2,2834.0,0.70568]
[1740356890117,2.519,2834.3,2833.9,0.5377]
[1740356890320,2.519,2834.3,2834.2,0.70565]
[1740356891016,2.519,2834.3,2833.9,0.5377]
[1740356891317,3.7661,2834.5,2833.9,0.5377]
[1740356891518,0.5583,2834.5,2834.4,0.7056]
[1740356891717,0.5583,2834.5,2834.1,3.2078]
[1740356891718,0.00528961,2834.6,2834.0,1.0539]
[1740356891914,3.2078,2834.5,2833.9,1.24341]
[1740356892117,3.2078,2834.5,2833.9,0.5377]
[1740356892316,0.70568,2834.1,2833.9,0.5377]
[1740356892523,0.7057,2834.0,2833.7,3.91355]
[1740356892724,0.5341,2834.4,2833.7,3.2078]
[1740356893024,3.74264,2834.3,2833.9,0.70571]
[1740356893223,0.70566,2834.2,2833.7,3.2078]
[1740356893519,0.526,2834.2,2834.0,0.70569]
[1740356893720,0.526,2834.2,2833.7,3.2078]
[1740356893721,0.526,2834.2,2833.7,3.7363]
[1740356894022,0.526,2834.2,2834.1,0.70567]
[1740356894430,0.00528961,2834.6,2834.5,0.70557]
[1740356894724,2.52328961,2834.6,2834.5,0.70557]
[1740356895121,0.00528961,2834.6,2834.5,0.70557]
[1740356895823,0.00528961,2834.6,2834.5,41.50557]
[1740356896217,9.61e-06,2834.6,2834.5,41.50557]
[1740356899016,9.61e-06,2834.6,2834.5,0.70557]
[1740356900326,9.61e-06,2834.6,2834.5,8.29509745]
[1740356900515,9.61e-06,2834.6,2834.5,10.81209745]
[1740356903219,9.61e-06,2834.6,2834.5,9.22257]
[1740356903426,1.0858,2836.0,2835.7,0.70527]
[1740356903625,1.0858,2836.0,2835.9,0.70522]
[1740356904028,1.0858,2836.0,2835.4,3.7593]
[1740356904327,0.70524,2835.9,2835.6,0.70528]
[1740356904517,0.70522,2835.9,2835.6,0.70528]
[1740356904719,0.70522,2835.9,2835.6,0.70529]
[1740356905323,0.70522,2835.9,2835.4,3.7593]
[1740356905621,0.70522,2835.9,2835.7,0.70526]
[1740356905922,0.70522,2835.9,2835.1,2.517]
[1740356905923,3.2078,2835.9,2835.1,3.2078]
[1740356906123,3.0614,2835.8,2835.2,0.70539]
[1740356906626,0.70535,2835.4,2835.1,0.70542]
[1740356906831,0.70541,2835.2,2834.9,0.70546]
[1740356907025,0.5398,2835.3,2834.7,3.7689]
[1740356907026,1.0635,2835.3,2834.7,3.7689]
[1740356907327,1.76889,2835.3,2835.0,0.70543]
[1740356909228,1.0635,2835.3,2835.0,0.70543]
[1740356909429,1.0635,2835.3,2834.7,3.7689]
[1740356909630,1.0635,2835.3,2835.1,0.7054]
[1740356909831,1.0635,2835.3,2835.2,0.7054]
[1740356915434,0.5454,2835.8,2835.0,3.2078]
[1740356915724,0.5653,2835.7,2835.5,0.7053]
[1740356915924,0.70536,2835.4,2835.2,0.70539]
[1740356916130,0.5534,2835.3,2835.2,0.70539]
[1740356916431,0.5534,2835.3,2835.1,0.70541]
[1740356916626,0.5653,2835.2,2834.8,40.8]
[1740356916827,0.70547,2834.9,2834.7,3.7241]
[1740356917132,0.70551,2834.8,2834.5,0.70556]
[1740356917333,1.0839,2834.7,2834.5,0.70556]
[1740356917633,1.0839,2834.7,2834.3,40.80528961]
[1740356917929,1.78943,2834.7,2834.4,0.70559]
[1740356918324,4.2917,2834.7,2834.3,0.00528961]
[1740356918520,0.7056,2834.4,2834.3,0.00528961]
[1740356918726,3.9134,2834.4,2834.3,0.00528961]
[1740356918926,3.2078,2834.4,2833.7,0.5365]
[1740356919127,0.70563,2834.3,2833.9,0.70572]
[1740356919328,2.515,2834.2,2833.9,0.70572]
[1740356919529,2.515,2834.2,2833.5,42.4431]
[1740356919729,0.5491,2834.1,2833.9,0.70572]
[1740356920235,2.515,2834.2,2833.7,3.2078]
[1740356920536,2.515,2834.2,2834.1,0.70567]
[1740356922334,0.00528961,2834.3,2834.2,0.70565]
[1740356925739,0.70566,2834.2,2833.9,0.7057]
[1740356925929,0.566,2834.1,2833.7,3.2078]
[1740356926129,0.70573,2833.9,2833.7,3.2078]
[1740356926328,0.70571,2834.0,2833.7,3.91356]
[1740356926831,1.27168,2834.1,2833.8,0.70574]
[1740356927032,0.566,2834.1,2833.9,0.70572]
[1740356927935,0.566,2834.1,2833.7,3.2078]
[1740356928137,0.566,2834.1,2833.9,0.70572]
[1740356929635,0.566,2834.1,2833.6,0.5384]
[1740356929831,1.27169,2834.1,2833.8,0.70574]
[1740356930138,0.566,2834.1,2833.9,0.70571]
[1740356930535,0.566,2834.1,2833.6,0.5384]
[1740356930731,3.7738,2834.1,2833.6,1.24419]
[1740356930936,3.7738,2834.1,2833.7,0.70577]
[1740356930937,0.70571,2834.0,2833.7,0.70577]
[1740356931138,0.5326,2833.9,2833.7,0.70577]
[1740356931338,0.5326,2833.9,2833.6,0.5384]
[1740356931534,0.5326,2833.9,2833.4,3.91364]
[1740356931732,0.70578,2833.7,2833.4,3.2078]
[1740356932139,0.5136,2833.6,2833.4,3.2078]
[1740356932341,0.5136,2833.6,2833.3,0.70586]
[1740356932533,0.5136,2833.6,2833.2,4.33022473]
[1740356932738,0.5136,2833.6,2833.2,5.03610473]
[1740356932739,0.70583,2833.5,2833.2,5.03610473]
[1740356933135,0.5136,2833.6,2833.2,4.33022473]
[1740356933136,1.21941,2833.6,2833.2,4.33022473]
[1740356933343,0.70583,2833.5,2833.2,0.70589]
[1740356933643,0.5136,2833.6,2833.4,0.70583]
[1740356934145,0.5136,2833.6,2833.3,0.70585]
[1740356935348,0.5136,2833.6,2833.1,1.0895]
[1740356935642,1.2194,2833.6,2833.3,0.70586]
[1740356936443,0.5136,2833.6,2833.1,1.0895]
[1740356936652,0.5136,2833.6,2833.4,0.70583]
[1740356936843,0.5136,2833.6,2833.3,0.70586]
[1740356937045,0.5136,2833.6,2833.1,1.0895]
[1740356937646,1.21941,2833.6,2833.3,0.70585]
[1740356937847,0.5136,2833.6,2833.4,0.70583]
[1740356939349,0.5136,2833.6,2833.1,1.0895]
[1740356939543,1.2194,2833.6,2833.4,0.70584]
[1740356939853,1.2194,2833.6,2833.3,0.70585]
[1740356940345,0.5136,2833.6,2833.4,0.70585]
[1740356941648,1.21941,2833.6,2833.4,0.70584]
[1740356941849,0.5136,2833.6,2833.4,0.70584]
[1740356942350,0.5136,2833.6,2833.5,0.70582]
[1740356943851,0.5136,2833.6,2833.1,1.0895]
[1740356943852,2.515,2833.7,2833.1,1.0895]
[1740356944160,2.515,2833.7,2833.6,0.7058]
[1740356944949,2.514,2833.7,2833.6,0.70578]
[1740356945149,3.2078,2833.8,2833.7,0.70577]
[1740356947252,3.2078,2833.8,2833.2,3.2078]
[1740356947754,3.2078,2833.8,2833.7,0.70577]
[1740356948146,0.70573,2833.9,2833.7,0.70577]
[1740356949154,22.087,2834.1,2833.2,3.2078]
[1740356949355,22.087,2834.1,2833.7,0.70575]
[1740356949655,0.70572,2833.9,2833.7,0.70576]
[1740356950357,22.087,2834.1,2833.7,0.70576]
[1740356950649,22.087,2834.1,2833.2,3.2078]
[1740356950849,0.70573,2833.9,2833.7,0.70576]
[1740356951255,0.70576,2833.8,2833.6,0.70578]
[1740356951656,0.70574,2833.9,2833.6,0.70578]
[1740356952050,22.087,2834.1,2833.2,3.2078]
[1740356952353,0.70571,2834.0,2833.7,0.70575]
[1740356953357,0.70572,2833.9,2833.7,0.70575]
[1740356953552,19.573,2834.1,2833.5,3.2078]
[1740356953854,0.00528961,2834.3,2834.2,0.70565]
[1740356954249,0.00528961,2834.3,2834.2,3.91345]
[1740356956563,0.00528961,2834.3,2834.2,3.2078]
[1740356957153,0.00528961,2834.3,2834.2,3.91345]
[1740356957653,0.00528961,2834.3,2834.2,3.2078]
[1740356957854,0.00528961,2834.3,2834.2,0.70565]
[1740356959259,0.00528961,2834.3,2834.2,1.22705]
[1740356959461,0.00528961,2834.3,2834.2,1.79135]
[1740356966670,0.00528961,2834.3,2834.1,3.2078]
[1740356966866,1.23992961,2834.3,2834.1,3.2078]
[1740356967167,0.53428961,2834.3,2834.1,3.91347]
[1740356967361,1.23990961,2834.3,2834.1,3.91347]
[1740356967556,0.5334,2834.2,2834.1,3.2078]
[1740356967859,1.23905,2834.2,2834.1,3.2078]
[1740356968164,0.70569,2834.1,2833.8,0.70573]
[1740356968361,2.511,2834.1,2833.8,0.70573]
[1740356969166,2.511,2834.1,2833.6,1.0861]
[1740356969664,2.511,2834.1,2833.9,0.70572]
[1740356969860,3.21669,2834.1,2833.6,1.0861]
[1740356970062,2.511,2834.1,2833.6,1.0861]
[1740356970262,2.511,2834.1,2833.8,0.70573]
[1740356970469,2.511,2834.1,2833.7,0.5541]
[1740356970668,2.511,2834.1,2833.9,0.7057]
[1740356970868,2.511,2834.1,2834.0,0.7057]
[1740356971370,3.21668,2834.1,2833.7,0.5541]
[1740356972065,3.21668,2834.1,2833.8,0.70575]
[1740356972269,2.511,2834.1,2833.9,0.70571]
[1740356972461,2.511,2834.1,2834.0,0.7057]
[1740356972659,2.511,2834.1,2833.7,0.5541]
[1740356972865,3.21668,2834.1,2833.7,0.5541]
[1740356973170,2.511,2834.1,2834.0,0.7057]
[1740356973362,3.21669,2834.1,2833.7,0.5541]
[1740356973563,2.511,2834.1,2834.0,0.7057]
[1740356975061,0.53428961,2834.3,2834.2,0.70565]
[1740356975062,0.00528961,2834.3,2834.2,0.70565]
[1740356975568,0.00528961,2834.3,2834.2,3.91345]
[1740356977064,0.00528961,2834.3,2833.7,6.2729]
[1740356977374,3.21666,2834.2,2833.9,0.70571]
[1740356977872,0.70573,2833.9,2833.7,0.5541]
[1740356978067,1.78889,2834.1,2833.7,1.25985]
[1740356978372,0.70572,2834.0,2833.7,1.25985]
[1740356978571,1.0832,2834.1,2833.8,0.70573]
[1740356978773,1.78888,2834.1,2833.8,0.70573]
[1740356979164,1.0832,2834.1,2834.0,0.7057]
[1740356979472,1.0832,2834.1,2833.9,0.70571]
[1740356979875,1.0832,2834.1,2834.0,0.7057]
[1740356980071,1.0832,2834.1,2833.9,0.70571]
[1740356980772,1.0832,2834.1,2834.0,0.7057]
[1740356981679,1.0832,2834.1,2833.7,0.5541]
[1740356982071,1.0832,2834.1,2833.9,0.70571]
[1740356982579,3.5932,2834.1,2833.9,0.70571]
[1740356982875,3.5932,2834.1,2833.7,0.5541]
[1740356983087,3.5932,2834.1,2834.0,0.7057]
[1740356983877,3.5932,2834.1,2833.7,0.5541]
[1740356984175,3.5932,2834.1,2834.0,0.7057]
[1740356984877,3.5932,2834.1,2833.9,0.70571]
[1740356985575,4.29888,2834.1,2833.9,0.70571]
[1740356985970,3.5932,2834.1,2833.7,0.5541]
[1740356986170,3.5932,2834.1,2834.0,0.7057]
[1740356986574,3.5932,2834.1,2833.9,0.70571]
[1740356986774,4.29889,2834.1,2833.9,0.70571]
[1740356988076,3.5932,2834.1,2833.4,3.2078]
[1740356988376,0.70576,2833.8,2833.5,0.7058]
[1740356988681,2.51,2833.7,2833.6,0.7058]
[1740356990978,2.51,2833.7,2833.3,0.5361]
[1740356991280,2.51,2833.7,2833.6,0.7058]
[1740356991478,3.2078,2833.9,2833.3,0.5361]
[1740356991778,2.51,2833.9,2833.4,4.97242]
[1740356991983,2.51,2833.9,2833.8,0.70575]
[1740356994785,2.51,2833.9,2833.7,0.70576]
[1740356995286,2.51,2833.9,2833.8,0.70575]
[1740356996385,2.51,2833.9,2833.4,3.2078]
[1740356996386,2.51,2833.9,2833.7,0.70576]
[1740356997885,2.51,2833.9,2833.8,0.70575]
[1740356999088,1.0832,2834.1,2834.0,0.7057]
[1740356999382,0.5606,2834.1,2834.0,0.7057]
[1740356999689,0.00528961,2834.3,2833.9,3.2078]
[1740356999882,0.00528961,2834.3,2834.2,0.70565]
[1740357001382,0.00528961,2834.3,2834.1,0.5101]
[1740357001582,0.71091961,2834.3,2834.1,0.70567]
[1740357001783,0.70565,2834.2,2834.0,1.82269]
[1740357002088,3.7488,2834.2,2833.9,1.58952745]
[1740357002292,1.24667,2834.2,2833.9,2.29523745]
[1740357002481,0.541,2834.2,2834.1,0.70567]
[1740357003279,0.541,2834.2,2833.9,1.58952745]
[1740357003479,0.70575,2833.8,2833.7,0.5161]
[1740357003685,2.508,2833.9,2833.2,3.2078]
[1740357003985,0.70586,2833.4,2833.2,3.2078]
[1740357004290,0.70586,2833.4,2833.0,0.70594]
[1740357004493,1.25467,2833.3,2833.0,0.70594]
[1740357004684,0.5488,2833.3,2833.0,0.70594]
[1740357004884,0.5488,2833.3,2832.9,4.8095]
[1740357005086,2.508,2833.5,2832.9,4.8095]
[1740357005285,3.2078,2833.9,2833.2,4.97252]
[1740357005492,2.508,2834.0,2833.9,0.70572]
[1740357005687,2.508,2834.0,2833.6,1.6508]
[1740357005898,2.508,2834.0,2833.9,0.70572]
[1740357007397,2.508,2834.0,2833.6,0.5649]
[1740357007697,3.21371,2834.0,2833.7,0.70575]
[1740357008302,2.508,2834.0,2833.9,0.70572]
[1740357008597,3.2078,2834.1,2833.6,0.5649]
[1740357008795,3.2078,2834.1,2833.9,0.70571]
[1740357008995,3.2078,2834.1,2834.0,0.7057]
[1740357009199,3.2078,2834.1,2833.6,0.5649]
[1740357009498,0.70576,2833.8,2833.6,0.5649]
[1740357009693,3.7592,2834.1,2833.6,1.27068]
[1740357009892,0.70573,2833.9,2833.6,1.27068]
[1740357010096,0.70579,2833.7,2833.4,0.70583]
[1740357010294,3.21373,2833.9,2833.3,1.6508]
[1740357010607,2.508,2833.9,2833.3,1.6508]
[1740357010893,0.70578,2833.7,2833.4,0.70583]
[1740357011094,2.508,2833.9,2833.3,1.6508]
[1740357011291,1.0722,2833.6,2833.5,0.70582]
[1740357011692,0.5234,2833.6,2833.5,0.70582]
[1740357013101,2.507,2834.0,2833.9,0.70572]
[1740357014098,3.2078,2834.1,2833.9,0.70572]
[1740357014305,3.91348,2834.1,2833.9,0.70572]
[1740357017195,3.2078,2834.1,2833.9,0.70572]
[1740357017798,3.2078,2834.1,2833.3,1.6508]
[1740357018206,0.70579,2833.7,2833.4,0.70584]
[1740357018395,1.0542,2833.6,2833.5,0.70582]
[1740357019091,0.70582,2833.5,2833.3,0.5649]
[1740357019297,0.70587,2833.4,2833.0,1.0722]
[1740357019501,0.70587,2833.4,2833.1,0.70591]
[1740357019906,0.70587,2833.4,2833.1,0.7059]
[1740357020103,0.70587,2833.4,2833.2,0.7059]
[1740357020301,0.5112,2833.5,2833.3,0.70586]
[1740357020507,0.5112,2833.5,2833.0,1.0722]
[1740357020911,0.5112,2833.5,2833.3,0.70585]
[1740357022000,0.5112,2833.5,2833.0,1.0722]
[1740357022200,0.5112,2833.5,2833.3,0.70587]
[1740357023007,0.70586,2833.4,2833.1,0.70591]
[1740357023305,0.70588,2833.3,2833.0,1.0722]
[1740357023514,0.70588,2833.3,2833.1,0.70592]
[1740357024409,2.506,2833.4,2832.9,3.2078]
[1740357024604,0.70588,2833.3,2833.0,0.70594]
[1740357025005,2.506,2833.4,2832.9,3.2078]
[1740357025205,0.70591,2833.2,2832.9,3.91376]
[1740357025406,2.506,2833.4,2832.9,3.2078]
[1740357025610,0.5641,2833.1,2832.9,3.2078]
[1740357026000,1.27003,2833.1,2832.9,3.2078]
[1740357026206,1.27003,2833.1,2830.3,2.98354755]
[1740357026207,2.506,2833.0,2832.2,3.2078]
[1740357026404,3.2078,2832.9,2832.2,4.2732]
[1740357026705,3.2078,2832.7,2832.2,0.5499]
[1740357027003,2.506,2832.6,2832.2,0.5499]
[1740357027200,3.037,2832.6,2831.8,0.5622]
[1740357027405,3.2078,2832.3,2831.8,0.5499]
[1740357027606,3.0614,2832.2,2832.1,0.70617]
[1740357027803,3.0614,2832.2,2831.8,0.5499]
[1740357028006,3.76756,2832.2,2831.8,1.25613]
[1740357028316,3.0614,2832.2,2831.8,0.5499]
[1740357028515,0.531,2832.1,2831.9,0.70622]
[1740357028710,1.23719,2832.1,2831.8,0.5499]
[1740357029106,1.23717,2832.1,2831.8,1.25613]
[1740357029618,1.51844208,2832.1,2831.8,0.5499]
[1740357029916,1.23717,2832.1,2831.8,1.25614]
[1740357030317,1.23717,2832.1,2831.8,0.5499]
[1740357030921,1.23718,2832.1,2831.6,0.5655]
[1740357031119,0.531,2832.1,2831.6,0.5655]
[1740357031419,0.70623,2831.9,2831.6,0.70629]
[1740357031618,2.506,2831.8,2831.5,0.5389]
[1740357031915,2.506,2831.8,2831.7,0.70627]
[1740357033520,2.506,2831.8,2831.6,0.70628]
[1740357033816,2.506,2831.8,2831.7,0.70627]
[1740357034218,2.506,2831.8,2831.6,0.70628]
[1740357034618,2.506,2831.8,2831.5,0.5389]
[1740357034911,2.506,2831.8,2831.2,0.5661]
[1740357034912,3.2078,2831.7,2831.2,0.5661]
[1740357035116,3.2078,2831.7,2831.5,0.7063]
[1740357035117,1.0669,2831.6,2831.5,0.7063]
[1740357035506,1.0669,2831.6,2831.4,0.70633]
[1740357035710,1.7732,2831.6,2831.3,0.70637]
[1740357035911,1.7732,2831.6,2831.4,0.70634]
[1740357036111,1.0669,2831.6,2831.2,1.1202]
[1740357036313,1.0669,2831.6,2831.0,0.526]
[1740357036314,1.0669,2831.6,2831.1,3.2078]
[1740357036509,1.0669,2831.6,2828.9,7.994]
[1740357036510,3.2078,2831.4,2830.5,3.2078]
[1740357036708,3.2078,2831.1,2830.5,3.2078]
[1740357036918,1.06,2831.0,2830.7,0.70651]
[1740357037111,1.06,2831.0,2830.5,3.2078]
[1740357037112,2.506,2830.9,2830.8,0.70649]
[1740357037316,2.506,2830.9,2830.7,0.70651]
[1740357037512,2.506,2830.9,2830.2,1.6351]
[1740357037717,0.70651,2830.8,2830.5,0.70656]
[1740357038121,3.21248,2830.9,2830.5,0.70656]
[1740357038324,2.506,2830.9,2830.5,0.70656]
[1740357038621,2.506,2830.9,2830.2,1.6351]
[1740357039026,2.506,2830.9,2830.7,0.7065]
[1740357039722,2.506,2830.9,2830.2,1.6351]
[1740357040118,3.21249,2830.9,2830.5,0.70655]
[1740357040318,0.7065,2830.8,2830.5,0.70655]
[1740357040721,0.7065,2830.8,2830.4,0.70658]
[1740357040915,0.7065,2830.8,2830.5,0.70657]
[1740357041116,0.7065,2830.8,2830.4,0.70659]
[1740357041317,2.506,2830.9,2830.8,0.70649]
[1740357042522,2.506,2830.9,2830.2,1.6351]
[1740357043016,3.21248,2830.9,2830.6,0.70653]
[1740357043219,2.506,2830.9,2830.8,0.70649]
[1740357045725,0.5209,2831.0,2830.9,0.70647]
[1740357046023,2.51128961,2831.2,2831.1,0.70642]
[1740357048227,2.51128961,2831.2,2830.7,3.2078]
[1740357048428,4.2566,2831.1,2830.4,0.5157]